[Event "44th Chess Olympiad Open 2022"]
[Site "Chennai"]
[Date "2022.08.01"]
[Round "4.33"]
[White "Berend, Elvira"]
[Black "Priasmoro, Novendra"]
[Result "1/2-1/2"]
[WhiteElo "2333"]
[BlackElo "2494"]
[Annotator "TA"]
[PlyCount "140"]
[EventDate "2022.??.??"]
[TimeControl "60"]

{[%evp 17,140,0,0,0,14,6,4,0,0,7,14,0,0,0,0,0,0,-24,45,44,43,52,80,78,75,64,60,
74,71,28,47,35,50,0,15,17,22,20,35,0,0,0,0,0,0,0,0,0,0,0,0,0,0,0,0,0,0,0,0,0,8,
8,53,50,66,60,159,171,171,171,333,183,502,496,517,499,495,464,489,468,539,512,
851,511,1075,602,567,592,889,850,1319,1319,1114,1242,1236,1248,589,567,428,396,
339,604,610,585,387,8,8,8,8,1,1,1,8,1,1,1,1,1,1,1,1,1,1,0,1]} 1. e4 {[%emt 0:
00:00]} c5 {[%emt 0:00:08]} 2. Nf3 {[%emt 0:00:11]} Nc6 {[%emt 0:00:06]} 3. Bb5
{[%emt 0:00:09]} g6 {[%emt 0:00:06]} 4. O-O {[%emt 0:00:23]} Bg7 {[%emt 0:00:
00]} 5. c3 {[%emt 0:00:35]} Nf6 {[%emt 0:00:11]} 6. Re1 {[%emt 0:00:43]} O-O {
[%emt 0:00:30]} 7. d4 {[%emt 0:00:16]} d5 {[%emt 0:06:21]} 8. e5 {[%emt 0:00:
00]} Ne4 {[%emt 0:01:01]} 9. Bxc6 {[%emt 0:00:19]} bxc6 {[%emt 0:00:06]} 10.
Be3 $1 {[%emt 0:00:22] now scores much better than the old 10.Nbd2. B31:
Sicilian: 2...Nc6 3 Bb5 g6.} Rb8 {[%emt 0:09:03]} 11. Qc1 {[%emt 0:04:31]} c4 {
[%emt 0:04:34]} 12. Nbd2 {[%emt 0:00:58] [#]} Bf5 $146 {[%emt 0:00:15]} ({
Predecessor:} 12... Nxd2 13. Nxd2 Bf5 14. b3 Bd3 15. Qa3 Rb7 16. Qa4 Qc7 17.
bxc4 Rfb8 18. Rec1 e6 19. cxd5 cxd5 {1-0 (40) Csiki,E (2357)-Seres,L (2387)
Budapest 2022}) 13. b3 {[%emt 0:05:03]} Qa5 {[%emt 0:01:05]} 14. Nxe4 {[%emt 0:
00:00]} Bxe4 {[%emt 0:00:08]} 15. Nd2 {[%emt 0:00:07]} Bd3 {[%emt 0:00:34]} 16.
Bg5 {[%emt 0:00:42]} Rb7 {[%emt 0:01:07]} 17. h4 {[%emt 0:01:54]} f5 {[%emt 0:
00:00]} (17... h6 $11 18. Be3 Rfb8) 18. exf6 {[%emt 0:00:50]} exf6 {[%emt 0:00:
00]} 19. Bf4 {[%emt 0:00:17]} Kf7 {[%emt 0:15:28]} 20. bxc4 {[%emt 0:05:52]}
dxc4 {[%emt 0:00:36] [#]} 21. Ne4 $1 {[%emt 0:00:16]} Bxe4 {[%emt 0:00:52]} 22.
Rxe4 {[%emt 0:00:06]} Qd5 {[%emt 0:01:13]} 23. Re1 {[%emt 0:00:11]} Re8 {
[%emt 0:02:50]} 24. Rxe8 {[%emt 0:01:38]} Kxe8 {[%emt 0:00:04]} 25. Bh6 {
[%emt 0:00:12]} (25. Rb1 $14 Rxb1 26. Qxb1) 25... Kf7 {[%emt 0:11:48]} 26. Bxg7
{[%emt 0:03:42]} Kxg7 $11 {[%emt 0:00:06] Endgame KQR-KQR} 27. Qe3 {[%emt 0:00:
11]} Qa5 {[%emt 0:09:51]} 28. Qf3 {[%emt 0:02:45]} Re7 {[%emt 0:00:00]} 29. Rf1
{[%emt 0:03:24]} Qb5 {[%emt 0:05:41]} 30. Qg3 {[%emt 0:01:40]} Kf7 {[%emt 0:05:
29]} 31. Qd6 {[%emt 0:01:46]} Qd5 {[%emt 0:01:32]} 32. Qb4 {[%emt 0:07:29]} h5
{[%emt 0:01:56]} 33. Qb8 {[%emt 0:00:00]} Kg7 {[%emt 0:00:00]} 34. Rb1 {
[%emt 0:00:01]} Qe4 {[%emt 0:00:26]} 35. g3 {[%emt 0:02:10]} Kf7 {[%emt 0:04:
12]} 36. Rf1 {[%emt 0:00:39]} g5 {[%emt 0:00:29]} 37. Qh8 {[%emt 0:00:00]} gxh4
{[%emt 0:03:00] White must now prevent ...Qf5.} 38. Qxh5+ {[%emt 0:00:15]} Kg8
{[%emt 0:00:36]} 39. Qxh4 {[%emt 0:04:59]} Qxh4 {[%emt 0:00:00]} (39... Qf3 $5
{[%cal Re7h7]} 40. Rb1 Kg7 $11) 40. gxh4 {[%emt 0:00:04] KR-KR} Re2 {[%emt 0:
00:06]} 41. Rb1 $1 {[%emt 0:30:26]} Rxa2 {[%emt 0:30:25]} (41... Rc2 $1 $14)
42. Rb4 $16 {[%emt 0:00:18]} Kg7 {[%emt 0:00:00]} 43. Rxc4 {[%emt 0:00:00]} Ra6
$2 {[%emt 0:00:00]} (43... a5 44. Kg2 (44. Rxc6 a4 $18) 44... a4 45. Rxc6 Rc2)
44. Rc5 {[%emt 0:00:00]} (44. Kg2 $142) 44... Kf7 $2 {[%emt 0:00:00]} (44...
Ra1+ 45. Kg2 a5 46. Rxc6 a4) 45. Kg2 $18 {[%emt 0:00:00]} Ke6 {[%emt 0:00:00]}
46. h5 {[%emt 0:00:00]} Rb6 {[%emt 0:00:00]} 47. Ra5 {[%emt 0:00:00]} Rb7 {
[%emt 0:00:00]} 48. Kf3 {[%emt 0:00:00]} Rb3 {[%emt 0:00:00]} 49. Rc5 {[%emt 0:
00:00]} Kd6 {[%emt 0:00:00]} (49... Rb6 $142 50. Ke4 Kf7) 50. Kf4 {[%emt 0:00:
00]} Rb2 {[%emt 0:00:00]} 51. f3 {[%emt 0:00:00]} Rh2 {[%emt 0:00:00]} 52. Ra5
{[%emt 0:00:00]} Rh1 {[%emt 0:00:00]} 53. c4 {[%emt 0:00:00][%cal Yc3c4,Yc4c5]}
Rc1 {[%emt 0:02:06]} 54. h6 {[%emt 0:03:45] Strongly threatening Rh5.} Rh1 {
[%emt 0:00:08] Against Rh5} 55. Rxa7 {[%emt 0:00:00]} Rxh6 {[%emt 0:00:10]} 56.
c5+ {[%emt 0:00:13]} Ke6 {[%emt 0:00:39]} 57. Rc7 {[%emt 0:00:08]} Rh4+ {
[%emt 0:00:03]} 58. Ke3 {[%emt 0:00:06]} Kd5 {[%emt 0:00:10]} 59. Rd7+ $2 {
[%emt 0:00:05]} (59. Rf7) 59... Kc4 {[%emt 0:00:00]} 60. Rd6 {[%emt 0:00:05]}
f5 {[%emt 0:00:15] [#]} 61. Rxc6 $2 {[%emt 0:00:00]} (61. Rd7 $1 $18 {Hoping
for Rd6.} Rh1 62. Rd6) 61... Rxd4 $11 {[%emt 0:00:00] The position is equal.}
62. Rf6 {[%emt 0:02:34]} Rd3+ $1 {[%emt 0:00:21]} 63. Ke2 {[%emt 0:00:43]} Rd5
$1 {[%emt 0:00:03]} 64. c6 {[%emt 0:00:07]} Kd4 $1 {[%emt 0:00:09]} 65. c7 {
[%emt 0:05:03]} Rc5 {[%emt 0:00:04]} 66. Rf7 {[%emt 0:00:00]} Ke5 {[%emt 0:01:
35]} 67. Kd3 {[%emt 0:02:56]} Rc6 {[%emt 0:00:19]} 68. Ke3 {[%emt 0:01:03]}
Rc3+ {[%emt 0:00:20]} 69. Kd2 {[%emt 0:04:57]} Rc5 {[%emt 0:00:20]} 70. Kd3 {
[%emt 0:00:23]} Rc6 {[%emt 0:00:05] Black escapes into a draw. Weighted Error
Value: White=0.23 (precise) /Black=0.25 (precise)} 1/2-1/2

[Event "44th Chess Olympiad Open 2022"]
[Site "Chennai"]
[Date "2022.08.01"]
[Round "4.33"]
[White "Schartz, Alain"]
[Black "Kurniawan, Muhamad Agus"]
[Result "0-1"]
[WhiteElo "2086"]
[BlackElo "2328"]
[Annotator "TA"]
[PlyCount "62"]
[EventDate "2022.??.??"]
[TimeControl "60"]

{[%evp 10,62,21,20,22,29,22,22,18,16,7,15,30,-19,15,-16,-16,-19,-27,-35,-37,
-31,-30,-21,14,-54,0,-10,26,0,0,0,0,0,27,27,118,106,91,96,120,93,98,-233,28,17,
27,0,0,-28,-21,-12,0,-722,-690]} 1. e4 {[%emt 0:00:03]} c5 {[%emt 0:00:23]} 2.
Nf3 {[%emt 0:00:18]} d6 {[%emt 0:00:16]} 3. Bb5+ {[%emt 0:00:34]} Nc6 {[%emt 0:
00:00]} 4. d4 {[%emt 0:07:14]} cxd4 {[%emt 0:01:01]} 5. Nxd4 {[%emt 0:01:26]}
Bd7 {[%emt 0:00:04]} 6. c4 {[%emt 0:02:56]} g6 {[%emt 0:06:20] B54: Sicilian:
2...d6 3 d4 cxd4 4 Nxd4, Unusual Lines .} 7. Nc3 {[%emt 0:02:33]} Bg7 {[%emt 0:
00:00]} 8. Be3 {[%emt 0:01:20]} Nf6 {[%emt 0:00:10] The position is equal.} 9.
f3 {[%emt 0:02:56] Prevents Ng4.} O-O {[%emt 0:00:49]} 10. O-O {[%emt 0:01:34]}
Rc8 {[%emt 0:11:39]} 11. b3 {[%emt 0:09:07] [#]} (11. Nde2 {was preferrable.})
11... Qa5 $146 {[%emt 0:09:34]} ({Predecessor:} 11... Nxd4 12. Bxd4 Bxb5 13.
Nxb5 a6 14. Na3 Qa5 15. Qc1 b5 16. Qb2 Ne8 17. Bxg7 Nxg7 {½-½ (87) Hollan,M 
(2055)-Plasek,Z (2051) Prague 2014}) 12. Rc1 {[%emt 0:05:23]} (12. Nde2 {
is more complex.} Ng4 13. fxg4 Bxc3 14. Nxc3 Qxc3 15. Bh6) 12... Nxd4 {[%emt 0:
00:00]} 13. Bxd4 {[%emt 0:14:40]} Be6 {[%emt 0:07:33]} 14. Qd3 {[%emt 0:08:08]}
a6 {[%emt 0:03:24]} 15. Ba4 {[%emt 0:00:21]} Nh5 $1 {[%emt 0:21:36] [#]
Strongly threatening ...Nf4.} 16. Bxg7 {[%emt 0:11:28]} Kxg7 {[%emt 0:00:20]}
17. Qd4+ {[%emt 0:09:57]} (17. f4 $11) 17... f6 {[%emt 0:03:06]} ({Black
should try} 17... Nf6 $15) 18. f4 {[%emt 0:02:18][%cal Yf3f4,Yf4f5]} Bf7 {
[%emt 0:07:06][%cal Yb7b5]} 19. f5 {[%emt 0:06:47] Hoping for g4.} Qe5 {
[%emt 0:02:55]} 20. Qd2 {[%emt 0:03:02] And now g4 would win.} g5 {[%emt 0:00:
00]} 21. g3 {[%emt 0:04:07] Against Nf4} Rfd8 {[%emt 0:03:11]} 22. Nd5 {
[%emt 0:01:38]} e6 {[%emt 0:06:04]} (22... b5 $1 $11 {remains equal.} 23. cxb5
Qxe4) 23. fxe6 {[%emt 0:01:41]} Bxe6 {[%emt 0:00:02]} 24. Rce1 {[%emt 0:01:03]}
Rc5 {[%emt 0:01:40]} 25. Qe2 {[%emt 0:00:28]} Bxd5 {[%emt 0:01:57]} 26. cxd5 {
[%emt 0:00:51] [#]} (26. exd5 $16 {is forced if you want to stay better.} Qxe2
27. Rxe2) 26... Kg6 $2 {[%emt 0:00:47]} (26... Nxg3 $1 $19 27. hxg3 Qxg3+ 28.
Qg2 Qxg2+ 29. Kxg2 Rc2+ 30. Rf2 Rxf2+ 31. Kxf2 b5 32. Bxb5 axb5) 27. b4 $11 {
[%emt 0:01:17]} Rc3 {[%emt 0:00:01][%cal Yh5g3] aiming for ...Nxg3!} 28. Rf3 {
[%emt 0:00:09]} ({Wrong is} 28. Bd1 $2 Nxg3 29. hxg3 Rxg3+ 30. Kh1 Rh3+ 31. Kg1
Qg3+ 32. Qg2 Qh4 $19) (28. Qd2 $5 {[%cal Rf1f5]}) 28... Rdc8 {[%emt 0:00:44]}
29. Ref1 {[%emt 0:00:53]} Rxf3 {[%emt 0:00:40]} 30. Rxf3 {[%emt 0:00:33]} Rc1+
{[%emt 0:00:16]} 31. Bd1 $2 {[%emt 0:00:34]} (31. Rf1 $11 Rc3 32. Rf2) 31...
Qd4+ {[%emt 0:00:10] Weighted Error Value: White=0.59/Black=0.33} 0-1

[Event "44th Chess Olympiad Open 2022"]
[Site "Chennai"]
[Date "2022.08.01"]
[Round "4.34"]
[White "Bachmann, Axel"]
[Black "Tran, Thanh Tu"]
[Result "1-0"]
[WhiteElo "2588"]
[BlackElo "2375"]
[Annotator "TA"]
[PlyCount "87"]
[EventDate "2022.??.??"]
[TimeControl "60"]

{[%evp 16,87,27,33,64,59,57,55,75,53,81,64,89,92,107,44,137,141,207,190,227,
233,275,275,293,281,274,262,274,263,230,254,240,200,487,486,537,538,747,623,
697,699,616,494,515,474,472,462,462,464,458,444,459,417,393,431,424,431,386,
392,379,371,318,369,914,901,1045,1017,1291,1282,1257,1277,29981,29981]} 1. Nf3
{[%emt 0:00:05]} Nc6 {[%emt 0:01:06]} 2. d4 {[%emt 0:03:10]} d6 {[%emt 0:01:23]
} 3. e4 {[%emt 0:01:45]} Nf6 {[%emt 0:01:05]} 4. Nc3 {[%emt 0:00:07]} g6 {
[%emt 0:00:42]} 5. h3 {[%emt 0:05:19]} Bg7 {[%emt 0:00:09]} 6. d5 {[%emt 0:00:
00]} Nb8 {[%emt 0:03:32]} 7. Bc4 {[%emt 0:06:32]} O-O {[%emt 0:01:27]} 8. O-O {
[%emt 0:00:11]} c6 {[%emt 0:03:28]} 9. a4 {[%emt 0:00:33]} a5 {[%emt 0:00:37]
was the old line (9...b6). B08: Pirc Defence: Classical System.} 10. Re1 {
[%emt 0:00:23]} Nfd7 {[%emt 0:04:58] [#]} 11. Bg5 $146 {[%emt 0:06:50]} ({
Predecessor:} 11. Be3 Nb6 12. Bb3 c5 13. Qd2 e5 14. dxe6 Bxe6 15. Bg5 Qd7 16.
Nd5 Bxd5 17. Bxd5 {½-½ (39) Prasca Sosa,R (2415)-De Angelis,S (2547) La
Massana 2012}) 11... h6 {[%emt 0:03:13] White is slightly better.} 12. Bf4 {
[%emt 0:00:08][%cal Yg5f4,Yf4g3,Yg3e5] 0x0.0013b9c5b69fdp-1022s more active
pieces.} Qb6 {[%emt 0:05:51]} 13. Qc1 {[%emt 0:03:07]} Qb4 {[%emt 0:00:00]} 14.
Bf1 {[%emt 0:09:07]} Kh7 {[%emt 0:08:50]} 15. Ra3 {[%emt 0:11:19]} (15. Be3 $16
) 15... Nc5 {[%emt 0:04:07] [#]} (15... Qb6 $1 $14) 16. e5 $1 $36 {[%emt 0:01:
17] White has strong initiative.} g5 {[%emt 0:23:50]} (16... dxe5 $16 17. Nxe5
(17. Bxe5 e6 $16) 17... e6) 17. Bg3 {[%emt 0:05:05][%cal Yc3b5]} (17. exd6 gxf4
18. dxe7 Re8 $11) 17... dxe5 {[%emt 0:01:12]} 18. Bxe5 {[%emt 0:00:29]} Bf5 {
[%emt 0:01:15]} 19. dxc6 {[%emt 0:08:38]} bxc6 {[%emt 0:01:18]} 20. Na2 {
[%emt 0:06:35]} (20. Nxg5+ hxg5 21. Na2 (21. Qxg5 Bg6 $17) 21... Qh4 $16) 20...
Qb6 {[%emt 0:00:05]} 21. Bxg7 {[%emt 0:00:52]} ({Resist} 21. Nxg5+ $6 hxg5 22.
Bxg7 (22. Qxg5 Bg6 $16) 22... Kxg7 $18) 21... Kxg7 {[%emt 0:00:02]} 22. h4 {
[%emt 0:00:42]} Ne4 {[%emt 0:03:22]} 23. Rae3 {[%emt 0:00:32][%cal Ya3e3,Ye3g3,
Yg3g4]} g4 {[%emt 0:00:50]} 24. Bd3 {[%emt 0:07:31]} Nd6 {[%emt 0:01:04]} (
24... g3) 25. Ne5 $18 {[%emt 0:01:22]} e6 {[%emt 0:02:16]} 26. Rg3 {[%emt 0:02:
38]} Qd4 {[%emt 0:01:50]} 27. b3 {[%emt 0:00:00]} Rh8 {[%emt 0:01:48]} 28. c3 {
[%emt 0:02:32]} Qc5 {[%emt 0:00:27]} 29. Nxg4 {[%emt 0:00:48]} Bxg4 {[%emt 0:
00:20]} 30. Rxg4+ {[%emt 0:00:06]} Kf8 {[%emt 0:00:04]} 31. Qf4 {[%emt 0:00:40]
} Ke7 {[%emt 0:00:44]} 32. b4 {[%emt 0:00:00]} axb4 {[%emt 0:02:34]} 33. cxb4 {
[%emt 0:00:11]} Qd5 {[%emt 0:00:15] [#]} 34. Nc3 $1 {[%emt 0:00:29]} Qxd3 {
[%emt 0:01:31]} 35. Rd1 {[%emt 0:00:06] Really sharp!} Qxd1+ {[%emt 0:00:12]}
36. Nxd1 {[%emt 0:00:07]} Rxa4 {[%emt 0:00:00]} 37. Nc3 {[%emt 0:00:45]} Ra1+ {
[%emt 0:00:54]} 38. Kh2 {[%emt 0:00:06]} Nd7 {[%emt 0:00:21]} 39. Rg3 {[%emt 0:
02:20] Rd3 is the strong threat.} Nf6 $2 {[%emt 0:02:23]} (39... Rd8 40. Rd3
Nf6) 40. Rf3 {[%emt 0:01:34]} Nfe8 {[%emt 0:07:51]} 41. Ne4 {[%emt 0:34:16]} f5
{[%emt 0:09:46]} 42. Nxd6 {[%emt 0:00:00]} Nxd6 {[%emt 0:00:03]} 43. Qe5 {
[%emt 0:00:00][%csl Ya1,Yh8] aiming for Re3.} Raa8 {[%emt 0:01:07]} 44. Re3 {
[%emt 0:00:00] Weighted Error Value: White=0.14 (very precise) /Black=0.61} 1-0

[Event "44th Chess Olympiad Open 2022"]
[Site "Chennai"]
[Date "2022.08.01"]
[Round "4.34"]
[White "Cubas, Jose Fernando"]
[Black "Averbukh, Alex"]
[Result "1-0"]
[WhiteElo "2451"]
[BlackElo "2155"]
[Annotator "TA"]
[PlyCount "53"]
[EventDate "2022.??.??"]
[TimeControl "60"]

{[%evp 16,53,34,15,18,25,17,7,16,14,36,0,26,19,34,36,50,52,57,41,67,72,87,56,
124,120,127,127,127,130,144,129,213,210,509,246,288,277,5377,5285]} 1. e4 {
[%emt 0:00:05]} e5 {[%emt 0:00:09]} 2. Nf3 {[%emt 0:00:16]} Nf6 {[%emt 0:00:15]
} 3. Nxe5 {[%emt 0:01:25]} d6 {[%emt 0:00:27]} 4. Nf3 {[%emt 0:00:14]} Nxe4 {
[%emt 0:00:10]} 5. d4 {[%emt 0:00:24]} d5 {[%emt 0:00:26]} 6. Bd3 {[%emt 0:00:
00]} Bf5 {[%emt 0:00:55]} 7. O-O {[%emt 0:01:38]} Be7 {[%emt 0:00:31]} 8. Re1 {
[%emt 0:10:56]} Nc6 {[%emt 0:08:00]} 9. Nc3 {[%emt 0:08:09] Recently 9.Nbd2
got a lot of attention.} Nxc3 {[%emt 0:03:16] C42: Petroff Defence: 3 Nxe5 and
unusual White 3rd moves.} 10. bxc3 {[%emt 0:00:07]} Bxd3 {[%emt 0:00:49]} 11.
Qxd3 {[%emt 0:00:05]} O-O {[%emt 0:00:12] The position is equal.} 12. Rb1 {
[%emt 0:00:04]} Rb8 {[%emt 0:02:26]} 13. Bf4 {[%emt 0:04:59]} Bf6 {[%emt 0:00:
00] [#]} 14. Re3 $146 {[%emt 0:04:56]} ({Predecessor:} 14. Ne5 Re8 15. Ng4 Bh4
16. Rxe8+ Qxe8 17. Bxc7 Rc8 18. Bg3 Bg5 19. f4 Bf6 20. Rxb7 {1-0 (30) Ganiev,R
(1880)-Gabidullin,V (1444) Chishmy 2016}) 14... Ne7 {[%emt 0:08:42]} 15. Rbe1 {
[%emt 0:02:41]} Ng6 {[%emt 0:06:28]} 16. Bg3 {[%emt 0:02:17]} a6 {[%emt 0:00:
00]} 17. c4 {[%emt 0:06:23]} Rc8 {[%emt 0:07:42]} 18. c5 {[%emt 0:06:26]} Qd7 {
[%emt 0:05:10]} 19. h3 {[%emt 0:04:41]} b6 {[%emt 0:20:52]} ({Black should play
} 19... Rfd8 $14) 20. Qxa6 $16 {[%emt 0:02:35]} bxc5 {[%emt 0:00:45]} 21. dxc5
{[%emt 0:00:19][%cal Yd4c5,Yc5c6]} d4 {[%emt 0:06:03]} 22. R3e2 {[%emt 0:01:20]
White is more active.} Qd5 {[%emt 0:00:42] [#]} 23. c6 $1 {[%emt 0:01:18]} Qf5
{[%emt 0:04:00]} (23... Qc5 $16 24. a4 h6) 24. a4 $18 {[%emt 0:00:51]} Ne7 $2 {
[%emt 0:07:21]} (24... Qc5 {was worth a try.} 25. Qb5 Qc3) 25. Nxd4 {[%emt 0:
03:32]} Bxd4 {[%emt 0:00:20]} 26. Rxe7 {[%emt 0:00:16]} Qxc2 $2 {[%emt 0:00:27]
[#]} (26... Bc5 27. R7e2 Qg5) 27. Qxc8 $3 {[%emt 0:00:00] Weighted Error Value:
White=0.30/Black=0.37} 1-0

[Event "44th Chess Olympiad Open 2022"]
[Site "Chennai"]
[Date "2022.08.01"]
[Round "4.34"]
[White "Kojima, Shinya"]
[Black "Delgado Ramirez, Neuris"]
[Result "1/2-1/2"]
[WhiteElo "2346"]
[BlackElo "2614"]
[Annotator "TA"]
[PlyCount "75"]
[EventDate "2022.??.??"]
[TimeControl "60"]

{[%evp 9,75,11,33,8,14,-11,0,-8,-10,-8,-9,-8,16,31,28,39,82,23,85,82,103,46,91,
24,26,21,41,18,13,14,54,0,0,0,0,0,0,-11,-11,-11,-11,-11,-5,-13,-13,-13,-12,-13,
-13,-14,-13,-21,-10,-11,0,0,0,0,0,0,0,0,0,-1,0,-8,-8,-8]} 1. e4 {[%emt 0:00:04]
} c5 {[%emt 0:00:07]} 2. Nf3 {[%emt 0:00:05]} Nc6 {[%emt 0:00:05]} 3. Bb5 {
[%emt 0:00:33]} e6 {[%emt 0:01:38]} 4. O-O {[%emt 0:00:27]} Nge7 {[%emt 0:00:
00]} 5. Re1 {[%emt 0:00:20]} Nd4 {[%emt 0:02:48]} 6. Bf1 {[%emt 0:10:20] B30:
Sicilian: 2...Nc6 3 Bb5, lines without ...g6.} Nec6 {[%emt 0:01:47]} 7. d3 {
[%emt 0:06:51]} Nxf3+ {[%emt 0:01:10]} 8. Qxf3 {[%emt 0:00:57]} Be7 {[%emt 0:
00:00]} 9. Nd2 {[%emt 0:04:56]} O-O {[%emt 0:01:54]} 10. c3 {[%emt 0:02:05]} b5
{[%emt 0:03:15] [#]} 11. Qg3 $146 {[%emt 0:05:34]} ({Predecessor:} 11. Nb3 Bb7
12. Be3 a6 13. e5 Na5 14. Qg3 {½-½ (14) Sax,G (2568)-Eljanov,P (2639) Saint
Vincent 2005}) 11... b4 {[%emt 0:03:49]} 12. Nf3 {[%emt 0:02:45]} Kh8 {[%emt 0:
00:00]} 13. Bf4 {[%emt 0:06:14]} (13. d4 $16 {And now d5 would win.} bxc3 14.
bxc3 cxd4 15. cxd4) 13... d5 {[%emt 0:06:36]} (13... Ba6 $11) 14. exd5 $16 {
[%emt 0:08:48] White is more active.} Qxd5 {[%emt 0:01:12] [#]} 15. Ne5 {
[%emt 0:02:08]} (15. d4 $1 $16) 15... Bb7 {[%emt 0:05:20]} 16. Be2 {[%emt 0:00:
00]} (16. d4 $16) 16... Rac8 {[%emt 0:18:45]} ({Don't do} 16... g5 17. Bxg5
Bxg5 18. Bf3 $16) 17. Bf3 {[%emt 0:09:44]} Qd8 {[%emt 0:00:58]} 18. Nc4 {
[%emt 0:17:38]} (18. Be4 $5 {[%cal Rg3h3]}) 18... bxc3 {[%emt 0:07:10]} 19.
bxc3 {[%emt 0:00:19]} Qxd3 {[%emt 0:00:50]} 20. Nd6 {[%emt 0:01:34]} (20. Ne5
$1 $14 Qf5 21. Rad1) 20... Bxd6 $11 {[%emt 0:01:52] The position is equal.} 21.
Bxd6 {[%emt 0:00:05]} Rfd8 {[%emt 0:00:29]} (21... Rfe8 {with more
complications.} 22. Rab1 Ba6 23. Red1 Qxc3 24. Rbc1 Qf6) 22. Bxc5 {[%emt 0:00:
00]} Qxc3 {[%emt 0:03:30]} (22... Ba8 {keeps more tension.} 23. Qf4 Qxc3 24.
Rac1 Qf6) 23. Bxc6 {[%emt 0:07:06] This bishop pair is nice.} (23. Rec1 {
is interesting.} Qd2 24. Be3 Qd7 25. Rd1) 23... Qxg3 {[%emt 0:00:47]} 24. hxg3
{[%emt 0:00:03]} Rxc6 {[%emt 0:01:41]} 25. Bxa7 {[%emt 0:00:05]} Ra8 {[%emt 0:
00:00]} 26. Be3 {[%emt 0:00:57]} Rca6 {[%emt 0:00:23]} 27. Rec1 {[%emt 0:03:48]
} Bd5 {[%emt 0:01:20]} (27... Rxa2 $2 28. Rxa2 Rxa2 29. Rb1 $18) 28. a3 {
[%emt 0:00:23]} h5 {[%emt 0:00:45]} 29. Rc7 {[%emt 0:01:23]} Kg8 {[%emt 0:00:
00]} 30. Bc5 {[%emt 0:00:23]} Ra4 {[%emt 0:00:06]} 31. Rc1 {[%emt 0:01:43]} h4
{[%emt 0:03:49]} 32. gxh4 {[%emt 0:00:17]} Rxh4 {[%emt 0:00:07]} 33. f3 {
[%emt 0:00:43]} Rc4 {[%emt 0:03:34]} 34. Rxc4 {[%emt 0:00:17]} Bxc4 {[%emt 0:
00:00]} 35. Ba7 {[%emt 0:01:07]} Bb5 {[%emt 0:00:56]} 36. Rb7 {[%emt 0:00:13]}
Bc6 {[%emt 0:00:23]} 37. Rb8+ {[%emt 0:00:13]} Rxb8 {[%emt 0:02:38]} 38. Bxb8 {
[%emt 0:00:09] Weighted Error Value: White=0.15 (very precise) /Black=0.09 
(flawless)} 1/2-1/2

[Event "44th Chess Olympiad Open 2022"]
[Site "Chennai"]
[Date "2022.08.01"]
[Round "4.34"]
[White "Bibby, Simon"]
[Black "Jodorcovsky Werjivker, Paulo"]
[Result "1/2-1/2"]
[WhiteElo "2147"]
[BlackElo "2213"]
[Annotator "NA RC"]
[PlyCount "110"]
[EventDate "2022.??.??"]
[TimeControl "60"]

1. e4 {[%emt 0:00:08]} c5 {[%emt 0:00:07]} 2. Nc3 {[%emt 0:00:15]} Nc6 {
[%emt 0:00:13]} 3. Nf3 {[%emt 0:00:12]} e6 {[%emt 0:00:47]} 4. d4 {[%emt 0:00:
00]} cxd4 {[%emt 0:00:05]} 5. Nxd4 {[%emt 0:00:01]} Nf6 {[%emt 0:00:09]} 6.
Nxc6 {[%emt 0:00:18]} bxc6 {[%emt 0:00:06]} 7. e5 {[%emt 0:00:38]} Nd5 {
[%emt 0:00:13]} 8. Ne4 {[%emt 0:00:18]} Bb7 {[%emt 0:00:19]} 9. Be2 {[%emt 0:
00:00]} c5 {[%emt 0:00:18]} 10. O-O {[%emt 0:01:03]} Qc7 {[%emt 0:00:21]} 11.
Nd6+ {[%emt 0:03:21]} Bxd6 {[%emt 0:00:18]} 12. exd6 {[%emt 0:00:01]} Qc6 {
[%emt 0:00:13]} 13. f3 {[%emt 0:00:10]} Qb6 {[%emt 0:00:46]} 14. c4 {[%emt 0:
00:00]} Nb4 {[%emt 0:04:35]} 15. Be3 {[%emt 0:06:19]} a5 {[%emt 0:00:05]} 16.
Qd2 {[%emt 0:23:36]} O-O {[%emt 0:00:32]} 17. h4 {[%emt 0:01:56]} Rae8 {
[%emt 0:04:01]} 18. h5 {[%emt 0:02:01]} f6 {[%emt 0:08:39]} 19. f4 {[%emt 0:00:
00]} Be4 {[%emt 0:03:04]} 20. Bf3 {[%emt 0:01:45]} f5 {[%emt 0:06:16]} 21. Bxe4
{[%emt 0:01:19]} fxe4 {[%emt 0:00:10]} 22. h6 {[%emt 0:00:33]} Nd3 {[%emt 0:00:
00]} 23. hxg7 {[%emt 0:00:28]} Rf7 {[%emt 0:00:25]} 24. b3 {[%emt 0:01:49]}
Qxd6 {[%emt 0:06:37]} 25. Qxa5 {[%emt 0:00:15]} Kxg7 {[%emt 0:01:17]} 26. Rad1
{[%emt 0:03:24]} Ref8 {[%emt 0:05:02]} 27. Qc3+ {[%emt 0:02:02]} Kg8 {[%emt 0:
00:00]} 28. a3 {[%emt 0:00:10]} Rb8 {[%emt 0:07:57]} 29. Rd2 {[%emt 0:05:05]}
Qf8 {[%emt 0:06:31]} 30. Rxd3 {[%emt 0:02:56]} exd3 {[%emt 0:00:11]} 31. Qxd3 {
[%emt 0:00:14]} Rd8 {[%emt 0:04:03]} 32. Qc3 {[%emt 0:02:05]} d5 {[%emt 0:00:
00]} 33. cxd5 {[%emt 0:00:18]} Rxd5 {[%emt 0:00:27]} 34. b4 {[%emt 0:01:52]}
cxb4 {[%emt 0:01:02]} 35. axb4 {[%emt 0:00:01]} Qd8 {[%emt 0:06:41]} 36. Rf3 {
[%emt 0:01:48]} Rg7 {[%emt 0:01:39]} 37. Qc6 {[%emt 0:01:05]} Rd1+ {[%emt 0:00:
00]} 38. Kh2 {[%emt 0:00:03]} Rg6 {[%emt 0:04:34]} 39. Rh3 {[%emt 0:00:37]} Rd6
{[%emt 0:01:58]} 40. Qe4 {[%emt 0:00:15]} Rd5 {[%emt 0:05:01]} 41. Qc4 {
[%emt 0:37:34]} Qa8 {[%emt 0:32:27]} 42. Qc2 {[%emt 0:02:08]} Qb7 {[%emt 0:00:
00]} 43. Bc5 {[%emt 0:05:52]} Qb8 {[%emt 0:10:57]} 44. Rf3 {[%emt 0:00:00]}
Rdg5 {[%emt 0:00:00]} 45. Rf2 {[%emt 0:00:00]} Rh5+ {[%emt 0:00:00]} 46. Kg1 {
[%emt 0:00:00]} Rgh6 {[%emt 0:00:00]} 47. Kf1 {[%emt 0:00:00]} Rh1+ {[%emt 0:
00:00]} 48. Ke2 {[%emt 0:00:00]} Qb5+ {[%emt 0:00:00]} 49. Kd2 {[%emt 0:00:00]}
Rf1 {[%emt 0:00:00]} 50. Rxf1 {[%emt 0:00:00]} Qxf1 {[%emt 0:00:00]} 51. Qe4 {
[%emt 0:00:00]} Qa6 {[%emt 0:00:00]} 52. f5 {[%emt 0:00:00]} Qa2+ {[%emt 0:00:
00]} 53. Kc3 {[%emt 0:00:00]} Qa1+ {[%emt 0:00:00]} 54. Kc2 {[%emt 0:00:00]}
Qa2+ {[%emt 0:00:00]} 55. Kc3 {[%emt 0:00:00]} Qa1+ {[%emt 0:01:09]} 1/2-1/2